[Event "Frauenbundesliga 2021-22"]
[Site "Germany"]
[Date "2022.05.26"]
[Round "3.15"]
[White "Schleining, Zoya"]
[Black "Duessler, Stefanie"]
[Result "1-0"]
[ECO "B38"]
[WhiteElo "2329"]
[BlackElo "2110"]
[Annotator "TA"]
[PlyCount "81"]
[EventDate "2021.11.26"]
[EventType "team-tourn"]
[EventCountry "GER"]
[SourceTitle "playchess.com"]
[Source "ChessBase"]
[SourceQuality "1"]
[WhiteTeam "Deizisau"]
[BlackTeam "Lehrte"]
[TimeControl "40/5400+30:1800+30"]

{[%evp 19,81,37,41,13,17,-5,85,81,72,76,108,94,102,91,106,86,102,104,91,79,123,127,118,112,117,96,133,84,204,197,240,233,230,93,96,0,122,110,220,228,220,187,250,254,253,254,433,411,444,449,452,450,657,652,1051,1109,1067,1148,1137,1130,1026,1092,961,824]} 1. Nf3 {[%emt 0:00:30]} c5 {[%emt 0:00:08]} 2. c4 {[%emt 0:00:18]} Nc6 {[%emt 0:00:10]} 3. d4 {[%emt 0:00:41]} cxd4 {[%emt 0:00:10]} 4. Nxd4 {[%emt 0:00:05]} g6 {[%emt 0:00:47]} 5. e4 {[%emt 0:00:33]} Bg7 {[%emt 0:01:01]} 6. Be3 {[%emt 0:00:17]} Nf6 {[%emt 0:01:13]} 7. Nc3 {[%emt 0:00:14]} d6 {[%emt 0:00:07]} 8. Be2 {[%emt 0:02:02]} O-O {[%emt 0:01:02]} 9. O-O {[%emt 0:00:31]} Bd7 {[%emt 0:00:19]} 10. Nc2 {[%emt 0:04:30]} Rc8 {[%emt 0:02:33]} 11. Qd2 {[%emt 0:03:39] B38: Sicilian: Maroczy Bind with 5...Bg7 and 7...0-0.} Ne5 {[%emt 0:09:27]} 12. b3 {[%emt 0:01:23]} Bc6 {[%emt 0:00:36] [#]} (12... b5 $11) 13. f3 $1 $16 {[%emt 0:01:27] White is better.} a6 {[%emt 0:01:43]} 14. Rac1 {[%emt 0:04:34]} Qc7 {[%emt 0:13:36]} 15. Rfd1 {[%emt 0:02:12] [#]} Ned7 $146 {[%emt 0:05:17]} ({Predecessor:} 15... Rfd8 16. Nb4 e6 17. Ncd5 Bxd5 18. cxd5 Qb8 19. dxe6 fxe6 20. Rxc8 Qxc8 21. Bb6 Rd7 {1-0 (35) Micek,J (2081)-Jusko,P Slovakia 2010}) 16. Bf1 {[%emt 0:05:55]} b6 {[%emt 0:03:14]} 17. Nb4 {[%emt 0:01:38]} Nc5 {[%emt 0:05:35]} 18. Ncd5 {[%emt 0:05:29]} Qb7 {[%emt 0:03:40]} 19. Bg5 {[%emt 0:14:01]} Bxd5 {[%emt 0:05:39]} 20. cxd5 {[%emt 0:04:52][%cal Bc4d5,Bd5c6][%mdl 32]} (20. Nxd5 Nxd5 21. cxd5 b5 $14) 20... Rfe8 {[%emt 0:02:53]} 21. Be3 {[%emt 0:01:13]} Nfd7 {[%emt 0:03:38]} 22. Nc6 {[%emt 0:07:17] Black must now prevent b4.} Ne5 {[%emt 0:04:04]} 23. Qc2 {[%emt 0:00:53]} (23. b4 $142 Na4 24. b5) 23... Nxc6 {[%emt 0:12:32]} (23... b5 $16) 24. dxc6 $18 {[%emt 0:00:13]} Qa7 {[%emt 0:00:10]} 25. b4 {[%emt 0:01:53]} Ne6 {[%emt 0:00:25]} 26. Qf2 {[%emt 0:02:35]} (26. f4 $18 {and White stays clearly on top.}) 26... Qa8 $16 {[%emt 0:02:52]} 27. Qc2 {[%emt 0:05:46] White is more active.} ({Reject} 27. Bxb6 Rxc6 28. Be3 Rec8 $11) ({Better is} 27. b5 $16) 27... b5 {[%emt 0:02:43]} (27... Qa7 $1 $11) 28. a4 {[%emt 0:00:19]} Qb8 {[%emt 0:01:04]} (28... Rc7 $16 {was called for.}) 29. axb5 $18 {[%emt 0:01:01]} axb5 {[%emt 0:00:03]} 30. Qe2 {[%emt 0:03:12]} Rc7 {[%emt 0:02:41]} (30... Nc7 $142 31. g3 Qa8) 31. Rd5 {[%emt 0:03:18]} ({Don't play} 31. Qxb5 $6 Qxb5 32. Bxb5 Rb8) 31... Qa8 {[%emt 0:01:56]} 32. Qxb5 {[%emt 0:01:12] And now Qa6 would win.} Rec8 $2 {[%emt 0:00:19]} (32... Rb8 33. Qa5 Qxa5 34. bxa5 (34. Rxa5 Bd4 $16) 34... Nc5) 33. Qa6 {[%emt 0:01:59]} Bb2 {[%emt 0:07:19]} 34. Qxa8 {[%emt 0:01:24] White is clearly winning.} Rxa8 {[%emt 0:00:04]} 35. Rc2 {[%emt 0:02:51]} Be5 {[%emt 0:00:34]} (35... Ba3 $142 36. b5 Bc5 37. Bxc5 Nxc5) 36. b5 {[%emt 0:01:29]} Nf4 {[%emt 0:00:56] [#]} 37. Rxe5 $1 {[%emt 0:01:08][%mdl 512]} dxe5 {[%emt 0:00:26]} 38. Bxf4 {[%emt 0:00:22]} exf4 {[%emt 0:00:04]} 39. b6 {[%emt 0:00:08]} Rac8 {[%emt 0:00:07]} 40. bxc7 {[%emt 0:00:05]} Rxc7 {[%emt 0:00:11]} 41. Bb5 {[%emt 0:30:35] Weighted Error Value: White=0.19 (very precise) /Black=0.49} 1-0

[Event "Frauenbundesliga 2021-22"]
[Site "Germany"]
[Date "2022.05.26"]
[Round "3.16"]
[White "Zschischang, Marine"]
[Black "Rapport, Jovana"]
[Result "1/2-1/2"]
[ECO "D00"]
[WhiteElo "2076"]
[BlackElo "2294"]
[Annotator "TA"]
[PlyCount "37"]
[EventDate "2021.11.26"]
[EventType "team-tourn"]
[EventCountry "GER"]
[SourceTitle "playchess.com"]
[Source "ChessBase"]
[SourceQuality "1"]
[WhiteTeam "Lehrte"]
[BlackTeam "Deizisau"]
[TimeControl "40/5400+30:1800+30"]

{[%evp 13,37,0,0,-48,-12,-22,-14,-18,-11,-8,4,0,15,0,39,41,38,26,66,8,42,37,47,43,43,44]} 1. d4 {[%emt 0:00:30]} Nf6 {[%emt 0:00:10]} 2. Nf3 {[%emt 0:00:06]} g6 {[%emt 0:00:12]} 3. Nc3 {[%emt 0:00:05]} d5 {[%emt 0:00:45]} 4. Bf4 {[%emt 0:02:13]} Bg7 {[%emt 0:00:06]} 5. e3 {[%emt 0:00:03]} O-O {[%emt 0:00:15]} 6. Be2 {[%emt 0:00:42]} c5 {[%emt 0:00:13]} 7. Ne5 {[%emt 0:00:08] 7.dxc5 is more fashionable.} Nc6 {[%emt 0:00:54]} 8. h4 {[%emt 0:00:12] D00: 1 d4 d5: Unusual lines.} (8. O-O $11) 8... cxd4 {[%emt 0:08:37]} 9. exd4 {[%emt 0:03:34]} (9. Nxc6 bxc6 10. exd4) 9... Qb6 {[%emt 0:01:03][%csl LRb2,LRd4]} 10. Nxc6 {[%emt 0:00:50] The position is equal.} bxc6 {[%emt 0:00:13]} 11. Na4 {[%emt 0:00:18]} Qa5+ {[%emt 0:03:20]} 12. c3 {[%emt 0:00:09]} Ne4 {[%emt 0:03:43][%cal Oe7e5]} 13. f3 {[%emt 0:03:34]} Nd6 {[%emt 0:00:41] [#]} (13... Nf6 $5 {[%cal Rf6h5]}) 14. h5 $146 {[%emt 0:09:05]} ({Predecessor:} 14. b4 Qd8 15. Nc5 f6 16. Be3 e5 17. Nb3 Re8 18. Bf2 Be6 19. O-O Bh6 20. Re1 {½-½ (42) Wiendieck,J (1864)-Mueller,M (2083) Bayern 2012}) 14... Re8 {[%emt 0:00:06]} 15. hxg6 {[%emt 0:00:48]} hxg6 {[%emt 0:00:27]} 16. g4 {[%emt 0:09:42]} (16. b3 $1 $14) 16... Nc4 {[%emt 0:11:07]} 17. b4 {[%emt 0:07:32] White is slightly better.} Qd8 {[%emt 0:00:40]} 18. Bxc4 {[%emt 0:07:12]} dxc4 {[%emt 0:00:25]} 19. Kf2 {[%emt 0:00:46] Weighted Error Value: White=0.12 (very precise) /Black=0.14 (very precise)} 1/2-1/2

[Event "Frauenbundesliga 2021-22"]
[Site "Germany"]
[Date "2022.05.26"]
[Round "3.17"]
[White "Koepke, Elena"]
[Black "Braje, Monika"]
[Result "1-0"]
[ECO "B01"]
[WhiteElo "2285"]
[BlackElo "1773"]
[Annotator "TA"]
[PlyCount "51"]
[EventDate "2021.11.26"]
[EventType "team-tourn"]
[EventCountry "GER"]
[SourceTitle "playchess.com"]
[Source "ChessBase"]
[SourceQuality "1"]
[WhiteTeam "Deizisau"]
[BlackTeam "Lehrte"]
[TimeControl "40/5400+30:1800+30"]

{[%evp 9,51,53,83,71,102,122,119,100,136,104,126,106,166,166,163,156,164,157,160,161,200,137,131,87,139,136,312,311,298,305,550,533,1170,507,1141,631,1167,1159,1177,1042,29986,29987,29987,29988]} 1. e4 {[%emt 0:00:04]} d5 {[%emt 0:00:07]} 2. exd5 {[%emt 0:00:06]} Nf6 {[%emt 0:00:04]} 3. d4 {[%emt 0:00:31]} Nxd5 {[%emt 0:00:05]} 4. c4 {[%emt 0:00:12]} Nb6 {[%emt 0:00:05]} 5. Nf3 {[%emt 0:00:24]} e6 {[%emt 0:00:28]} 6. Be3 {[%emt 0:02:58] B01: Scandinavian Defence.} Be7 {[%emt 0:01:14][%cal Oc7c5]} 7. Nc3 {[%emt 0:00:24]} O-O {[%emt 0:00:30][%cal Oc7c5] [#]} 8. Qc2 $146 {[%emt 0:08:16] White is better.} ({Predecessor:} 8. Bd3 N8d7 9. Qc2 Nf6 10. O-O c6 11. Rad1 Qc7 12. Ne5 Nbd7 13. f4 c5 14. Nb5 {1-0 (39) Banki H,I (2082)-Fabian Nagy,S (1956) Hungary 2019}) 8... Bf6 {[%emt 0:05:49]} 9. Ne4 {[%emt 0:06:37] White is more active.} ({Don't do} 9. Bd3 g6 $16) 9... Nc6 {[%emt 0:03:20][%cal Rf6d4] [#]} 10. Rd1 {[%emt 0:08:13]} g6 {[%emt 0:02:31]} (10... Be7 $16) 11. Nxf6+ {[%emt 0:00:45]} Qxf6 {[%emt 0:00:18]} 12. Be2 {[%emt 0:03:11]} Re8 {[%emt 0:06:47]} 13. O-O {[%emt 0:00:48]} e5 {[%emt 0:07:03]} 14. dxe5 {[%emt 0:02:13]} Nxe5 {[%emt 0:00:17]} 15. Nxe5 {[%emt 0:00:09]} Qxe5 {[%emt 0:00:31]} 16. Bf3 {[%emt 0:03:18] Black must now prevent c5.} c6 {[%emt 0:06:57]} (16... Bf5 $142 17. Qe2 Be4) 17. Bd4 {[%emt 0:07:38]} Qa5 {[%emt 0:03:40] This move loses the game for Black.} (17... Qf4 $16 18. b3 Bf5) 18. Qc1 $18 {[%emt 0:04:52] White wants to mate with Qh6.} Nd7 {[%emt 0:07:48]} 19. Bc3 {[%emt 0:04:56]} ({Not} 19. Qh6 f6 $16) 19... Qf5 {[%emt 0:01:46]} (19... Qc5 {was called for.} 20. Rde1 (20. Qh6 f6 $16) 20... Rxe1 21. Rxe1 Qf8) 20. Rfe1 {[%emt 0:02:07]} ({Weaker is} 20. Qh6 f6 21. Qh4 Qg5 22. Qxg5 fxg5 $16) 20... Rf8 {[%emt 0:03:11]} 21. Bb4 {[%emt 0:01:58] This bishop pair is nice.} (21. Qh6 $142 {[%csl Gc3][%cal Rh6g7]} Nf6 {[#]} 22. Re4 $3 {[%mdl 512]}) 21... c5 {[%emt 0:00:44]} (21... Nc5 $142 22. Qe3 b6 23. Bxc6 Bb7) 22. Rd5 {[%emt 0:00:24]} Qf6 {[%emt 0:02:50]} 23. Bc3 {[%emt 0:00:25]} Qh4 {[%emt 0:02:34]} 24. g3 {[%emt 0:01:31]} Qd8 {[%emt 0:02:53]} 25. Qh6 {[%emt 0:01:43][%csl Gc3][%cal Rh6g7]} f6 {[%emt 0:00:16]} 26. Rd6 {[%emt 0:00:44] Weighted Error Value: White=0.46/Black=0.92} 1-0

[Event "Frauenbundesliga 2021-22"]
[Site "Germany"]
[Date "2022.05.26"]
[Round "3.18"]
[White "Grabowski, Petra"]
[Black "Jelica, Mara"]
[Result "1/2-1/2"]
[ECO "D00"]
[WhiteElo "1635"]
[BlackElo "2121"]
[Annotator "TA"]
[PlyCount "132"]
[EventDate "2021.11.26"]
[EventType "team-tourn"]
[EventCountry "GER"]
[SourceTitle "playchess.com"]
[Source "ChessBase"]
[SourceQuality "1"]
[WhiteTeam "Lehrte"]
[BlackTeam "Deizisau"]
[TimeControl "40/5400+30:1800+30"]

{[%evp 9,132,3,16,19,20,14,13,20,56,0,3,-2,18,2,32,0,18,-5,0,2,41,39,36,45,53,39,52,0,0,-22,-23,-28,0,-20,-20,-22,0,0,31,-20,0,0,58,71,70,17,97,29,37,2,24,24,25,25,36,25,72,72,72,31,72,25,25,0,59,0,0,0,46,0,0,-41,-41,-41,0,0,0,-8,0,-8,0,0,0,0,0,-8,-6,-8,-8,-8,0,-8,0,-671,-671,-615,0,-8,9,9,9,-8,-8,-8,-8,-8,-8,-8,-8,-8,-8,-8,-8,-8,-8,-8,-8,-8,-8,-8,-8,-8,-8,-8,0]} 1. d4 {[%emt 0:00:04]} Nf6 {[%emt 0:00:05]} 2. Nf3 {[%emt 0:00:05]} g6 {[%emt 0:00:04]} 3. Nc3 {[%emt 0:00:10]} d5 {[%emt 0:00:15]} 4. Bf4 {[%emt 0:00:33]} Bg7 {[%emt 0:00:24]} 5. e3 {[%emt 0:00:59]} Nh5 {[%emt 0:01:45]} 6. Be5 {[%emt 0:03:53] D00: 1 d4 d5: Unusual lines.} f6 {[%emt 0:00:28]} 7. Bg3 {[%emt 0:00:15]} Nxg3 {[%emt 0:00:33]} 8. hxg3 {[%emt 0:00:40]} Be6 {[%emt 0:05:19] [#]} 9. Be2 $146 {[%emt 0:06:51]} (9. e4 $14) ({Predecessor:} 9. Qe2 Qd7 10. e4 Nc6 11. O-O-O f5 12. exd5 Bxd5 13. Nxd5 Qxd5 14. c4 Qa5 15. a3 {½-½ (53) Sambuev,B (2530)-Calugar,A (2282) Montreal 2013}) 9... Bf7 {[%emt 0:00:37]} 10. e4 {[%emt 0:08:18]} dxe4 {[%emt 0:06:46]} 11. Nxe4 {[%emt 0:00:56]} c6 {[%emt 0:01:28]} 12. c3 {[%emt 0:04:42]} Nd7 {[%emt 0:01:16]} 13. Bd3 {[%emt 0:04:18]} Qc7 {[%emt 0:02:32]} 14. Qe2 {[%emt 0:03:24]} h6 {[%emt 0:02:57]} (14... O-O-O) 15. Bc4 {[%emt 0:06:34]} e6 {[%emt 0:02:31]} 16. Nc5 {[%emt 0:14:04]} Nxc5 {[%emt 0:00:22]} 17. dxc5 {[%emt 0:00:10]} Qe7 {[%emt 0:05:21]} 18. Nd4 {[%emt 0:05:08]} (18. O-O-O $14) 18... O-O {[%emt 0:07:44]} 19. O-O {[%emt 0:04:28][%cal Rd4e6]} ({Reject} 19. Nxe6 Rfe8 20. O-O Bxe6 $15) 19... e5 {[%emt 0:00:50]} 20. Bxf7+ {[%emt 0:00:47]} Qxf7 {[%emt 0:02:38]} 21. Nf3 {[%emt 0:03:10]} Rad8 {[%emt 0:00:41]} 22. Rfd1 {[%emt 0:03:45]} Rd5 {[%emt 0:04:23]} 23. Rxd5 {[%emt 0:03:16]} Qxd5 {[%emt 0:00:27]} 24. Qc2 {[%emt 0:00:54]} (24. Nh4 $14) 24... Kh7 {[%emt 0:02:36]} 25. Qb3 {[%emt 0:04:04]} Qxb3 {[%emt 0:02:03]} (25... f5 $11) 26. axb3 $11 {[%emt 0:00:01][%mdl 4096] Endgame KRB-KRN} a6 {[%emt 0:00:06]} 27. Rd1 {[%emt 0:00:41] Prevents Rd8.} ({White should try} 27. Nd2 $14) 27... Rf7 {[%emt 0:00:12]} (27... e4 $11 28. Ne1 Rf7) 28. b4 {[%emt 0:01:33] White is more active.} (28. Rd8 $16) 28... f5 {[%emt 0:03:32]} 29. Ne1 {[%emt 0:01:55]} Bf6 {[%emt 0:00:35]} 30. Nc2 {[%emt 0:01:23]} Kg7 {[%emt 0:01:45]} 31. Ne3 {[%emt 0:01:13]} e4 {[%emt 0:05:59]} 32. Nc4 {[%emt 0:00:39]} Kf8 {[%emt 0:01:48]} (32... h5 $11) 33. Kf1 $16 {[%emt 0:04:03]} Rc7 {[%emt 0:02:13]} 34. Ke2 {[%emt 0:02:18]} h5 {[%emt 0:04:35] [#]} 35. Rd6 {[%emt 0:04:12]} (35. f3 $1 $16) 35... Kg7 $11 {[%emt 0:04:47]} 36. Rd1 {[%emt 0:01:18]} Be7 {[%emt 0:01:39]} (36... Kf8 $11) 37. Ne5 {[%emt 0:00:54]} ({Better is} 37. f3 $14) 37... Kf6 {[%emt 0:01:35]} 38. Nc4 {[%emt 0:01:56]} Ke6 {[%emt 0:02:17]} (38... Kg7 $11 {was preferrable.}) 39. Nb6 {[%emt 0:00:42]} (39. f3 $14) 39... a5 {[%emt 0:04:50]} 40. Nc4 {[%emt 0:02:11]} axb4 {[%emt 0:00:52]} 41. cxb4 {[%emt 0:30:01]} Bf6 {[%emt 0:31:10]} 42. Rd6+ {[%emt 0:01:05]} Kf7 {[%emt 0:00:21]} 43. Rd2 {[%emt 0:03:19]} Ke7 {[%emt 0:02:47]} 44. Nb6 {[%emt 0:00:35] Against Rd7} Kf7 {[%emt 0:02:11]} 45. Nc4 {[%emt 0:00:28]} Re7 {[%emt 0:01:34]} 46. Rd6 {[%emt 0:00:00]} g5 {[%emt 0:00:00]} 47. Rd2 {[%emt 0:00:00]} f4 {[%emt 0:00:00]} 48. gxf4 {[%emt 0:00:00]} gxf4 {[%emt 0:00:00]} 49. Nd6+ {[%emt 0:00:00]} Kg6 {[%emt 0:00:00]} 50. b5 {[%emt 0:00:00]} e3 {[%emt 0:00:00]} 51. Rc2 $2 {[%emt 0:00:00][%mdl 8192] [#]} (51. fxe3 $11 Rxe3+ 52. Kf1) 51... exf2+ $1 $19 {[%emt 0:00:00]} 52. Kxf2 {[%emt 0:00:00]} Re3 {[%emt 0:00:00]} (52... Bh4+ $19 53. g3 (53. Kf3 $2 {leads to mate.} Re3+ 54. Kxf4 Bg5#) 53... Bxg3+ 54. Kg2 h4 55. bxc6 bxc6) 53. Re2 {[%emt 0:00:00] The position is equal.} Rxe2+ {[%emt 0:07:16]} 54. Kxe2 {[%emt 0:00:00]} cxb5 {[%emt 0:00:35]} (54... Bxb2 $2 55. b6 $18) 55. Nxb7 {[%emt 0:00:00] Nd6 is the strong threat.} Bxb2 $11 {[%emt 0:01:46] White must now prevent ...Be5. KB-KN} 56. Nd6 {[%emt 0:00:00] aiming for c6.} Ba3 {[%emt 0:01:02]} 57. Nxb5 {[%emt 0:00:00]} Bxc5 {[%emt 0:00:03]} 58. Nc3 $1 {[%emt 0:00:03]} Bd4 {[%emt 0:00:39]} 59. Nd5 {[%emt 0:02:32]} Kf5 {[%emt 0:00:17]} 60. Kf3 {[%emt 0:02:29]} Be5 {[%emt 0:00:01]} 61. Nxf4 $1 {[%emt 0:00:42]} Bxf4 {[%emt 0:00:02] KB-KP} 62. g3 {[%emt 0:00:17]} Bd2 {[%emt 0:00:31]} 63. Kg2 {[%emt 0:00:12]} Kg4 {[%emt 0:00:08]} 64. Kh1 {[%emt 0:00:33]} Kh3 {[%emt 0:01:10]} 65. Kg1 {[%emt 0:00:29]} Be1 {[%emt 0:00:46]} 66. Kh1 {[%emt 0:00:22]} Bf2 {[%emt 0:00:21] Weighted Error Value: White=0.31/Black=0.24 (precise)} 1/2-1/2

[Event "Frauenbundesliga 2021-22"]
[Site "Germany"]
[Date "2022.05.26"]
[Round "3.19"]
[White "Socko, Monika"]
[Black "Saduakassova, Dinara"]
[Result "1-0"]
[ECO "A47"]
[WhiteElo "2384"]
[BlackElo "2446"]
[Annotator "TA"]
[PlyCount "131"]
[EventDate "2021.11.26"]
[EventType "team-tourn"]
[EventCountry "GER"]
[SourceTitle "playchess.com"]
[Source "ChessBase"]
[SourceQuality "1"]
[WhiteTeam "Hamburger SK"]
[BlackTeam "Schwaebisch Hall"]
[TimeControl "40/5400+30:1800+30"]

{[%evp 9,131,10,27,16,63,54,61,56,68,72,70,63,67,59,59,52,105,93,103,110,119,105,129,122,137,138,132,131,138,137,126,112,118,117,164,167,133,134,154,124,155,114,162,128,158,156,145,70,107,111,149,131,128,129,149,137,189,97,89,85,261,90,99,-15,-27,-23,0,0,0,0,0,6,41,18,22,17,16,7,109,113,164,162,130,148,156,150,154,57,137,22,22,22,22,22,22,22,22,22,22,22,22,22,22,22,22,18,18,18,18,18,18,18,18,18,18,18,18,18,29974,29975,29978,29979,29978,29979]} 1. d4 {[%emt 0:00:03]} Nf6 {[%emt 0:00:22]} 2. Nf3 {[%emt 0:00:13]} e6 {[%emt 0:00:12]} 3. e3 {[%emt 0:00:06]} b6 {[%emt 0:03:31]} 4. Bd3 {[%emt 0:01:30]} c5 {[%emt 0:03:52]} 5. O-O {[%emt 0:00:34]} Be7 {[%emt 0:02:56]} 6. c4 {[%emt 0:01:05] A47: 1 d4 Nf6 2 Nf3 b6: Torre, London and Colle Systems.} O-O {[%emt 0:12:18]} (6... d5 $11 {deserves consideration.}) 7. d5 $14 {[%emt 0:03:04]} d6 {[%emt 0:01:52]} 8. Nc3 {[%emt 0:02:24] White is slightly better.} exd5 {[%emt 0:01:43]} 9. cxd5 {[%emt 0:00:05]} Bg4 {[%emt 0:04:20]} 10. h3 {[%emt 0:00:40] [#]} Bxf3 $146 {[%emt 0:06:13]} ({Predecessor:} 10... Bh5 11. e4 Nbd7 12. Bf4 Bxf3 13. Qxf3 Ne5 14. Bxe5 dxe5 15. Qf5 Bd6 16. f4 Re8 {0-1 (44) Berberich,C (2059)-Tammert,G (2176) Baden 2016}) 11. Qxf3 {[%emt 0:00:12]} Nbd7 {[%emt 0:00:05]} 12. Qe2 {[%emt 0:03:28]} g6 {[%emt 0:10:20]} (12... Ne8 $14) 13. Bd2 {[%emt 0:07:03]} Nh5 {[%emt 0:07:09]} 14. g4 {[%emt 0:17:42]} Ng7 {[%emt 0:03:37]} 15. f4 {[%emt 0:01:20]} f5 {[%emt 0:03:29]} 16. g5 {[%emt 0:05:35]} Rf7 {[%emt 0:03:14]} 17. Rae1 {[%emt 0:01:11] White is more active.} Bf8 {[%emt 0:01:50]} 18. Kh2 {[%emt 0:04:20]} Qc7 {[%emt 0:02:35]} 19. b3 {[%emt 0:02:27]} Re8 {[%emt 0:00:51]} 20. Bb5 {[%emt 0:00:57]} Ree7 {[%emt 0:04:03]} 21. Qd3 {[%emt 0:01:41]} Nb8 {[%emt 0:03:20]} (21... Nh5 $16) 22. a4 $18 {[%emt 0:03:04]} Nh5 {[%emt 0:03:00]} 23. Qc2 {[%emt 0:03:15]} Nd7 {[%emt 0:05:35]} 24. Bd3 {[%emt 0:02:04]} Ng7 {[%emt 0:01:18]} 25. Re2 {[%emt 0:01:21]} Nh5 {[%emt 0:00:44]} (25... Qb7 $16 {is a better defense.}) 26. Rfe1 {[%emt 0:01:08]} Bg7 {[%emt 0:00:41]} 27. Nb5 {[%emt 0:09:00]} Qb8 {[%emt 0:00:24]} 28. Qc1 {[%emt 0:00:59]} ({White should try} 28. Rg2 $16) 28... Nf8 {[%emt 0:03:24]} 29. Rg2 {[%emt 0:01:46]} Bh8 {[%emt 0:00:38]} 30. Qd1 {[%emt 0:01:36]} a6 {[%emt 0:02:15]} 31. Na3 {[%emt 0:02:34]} (31. Nc3 $6 Qb7 $14) 31... Ra7 {[%emt 0:01:11]} 32. Qe2 {[%emt 0:03:37]} Qb7 {[%emt 0:02:04]} (32... b5 $16 {was worth a try.}) 33. Rb1 {[%emt 0:01:28]} (33. b4 $1 $18) 33... Qxd5 $16 {[%emt 0:01:59]} 34. Bc4 {[%emt 0:00:30]} Qc6 {[%emt 0:01:29]} 35. Bxf7+ $2 {[%emt 0:00:19]} (35. Qd3 $1 $18) 35... Kxf7 {[%emt 0:00:13]} 36. Bc3 {[%emt 0:02:16]} Bxc3 $11 {[%emt 0:01:34]} 37. Qc4+ {[%emt 0:00:02]} d5 {[%emt 0:00:58]} 38. Qxc3 {[%emt 0:00:01]} Re7 {[%emt 0:01:03]} 39. Rd1 {[%emt 0:01:15]} Qe6 {[%emt 0:01:13]} 40. Nc2 {[%emt 0:01:47]} Qe4 {[%emt 0:01:28]} (40... Qd6 $5 {[%cal Rd5d4]}) 41. Qd3 {[%emt 0:33:24]} Qxd3 {[%emt 0:04:06]} 42. Rxd3 {[%emt 0:00:00]} d4 {[%emt 0:00:08]} 43. Rf2 {[%emt 0:00:00]} Re4 {[%emt 0:06:27]} (43... Ne6 $11) 44. exd4 $16 {[%emt 0:00:00]} Nxf4 {[%emt 0:04:01]} (44... Ne6 $16 {keeps fighting.}) 45. Re3 $1 $18 {[%emt 0:00:00]} Rxe3 {[%emt 0:01:19]} 46. Nxe3 {[%emt 0:00:00][%mdl 4096] Endgame KRN-KNN} N4e6 {[%emt 0:00:59]} 47. d5 {[%emt 0:00:00]} Nd4 {[%emt 0:02:26]} 48. Kg3 {[%emt 0:00:00]} (48. Nc2 $16) 48... Nd7 {[%emt 0:01:28] [#]} (48... Ke7 $1 $14) 49. Kf4 {[%emt 0:00:00]} ({White should play} 49. Nc2 $1 $16 {[%cal Rc2d4]}) 49... Nxb3 $11 {[%emt 0:02:22] Pair of Knights!} 50. Nc4 {[%emt 0:00:00]} Nd4 {[%emt 0:02:26] Against Re2} 51. Rb2 {[%emt 0:00:35]} b5 {[%emt 0:01:13]} 52. axb5 {[%emt 0:00:21]} axb5 {[%emt 0:00:27]} 53. Nd6+ {[%emt 0:03:15]} Ke7 {[%emt 0:00:09]} 54. Nxb5 {[%emt 0:00:02]} Nxb5 {[%emt 0:00:06]} 55. Rxb5 {[%emt 0:00:01] KR-KN} Kd6 {[%emt 0:00:08]} 56. Rb7 {[%emt 0:00:31] Strongly threatening Ke3.} c4 {[%emt 0:01:34]} 57. h4 {[%emt 0:00:31]} Nc5 $1 {[%emt 0:02:13]} (57... c3 $2 58. Rb3 $18) 58. Rxh7 {[%emt 0:03:03] Black must now prevent h5.} c3 {[%emt 0:00:10] ( -> ...c2)} 59. Ke3 {[%emt 0:02:33] And now h5 would win.} f4+ {[%emt 0:01:54][%cal Bf5f4,Bf4f3][%mdl 32]} ({But not} 59... Kxd5 60. Rf7 Ke6 61. Rf8 $16) 60. Ke2 {[%emt 0:00:02] h5 is the strong threat.} (60. Kxf4 c2 61. Kg3 c1=Q 62. Kg2 Qd2+ 63. Kh3 Qd3+ 64. Kg2 Qe2+ 65. Kg1 Qg4+ 66. Kf2 Qf5+ 67. Ke3 Qd3+ 68. Kf4 Qd2+ 69. Kg3 Ne4+ 70. Kf3 Qd3+ 71. Kf4 Ng3) 60... f3+ {[%emt 0:01:15]} 61. Kd1 {[%emt 0:00:01]} ({Wrong is} 61. Kxf3 $2 c2 62. Rh6 c1=Q $19) 61... Kxd5 {[%emt 0:02:10] aiming for ...f2.} 62. h5 {[%emt 0:02:59]} gxh5 {[%emt 0:02:29]} 63. g6 {[%emt 0:00:18][%cal Bg5g6,Bg6g7][%mdl 32] White wants to mate with g7.} Ke6 $2 {[%emt 0:00:55][%mdl 8192] [#]} (63... Ne6 $11) 64. Rf7 $1 {[%emt 0:00:25] White mates.} Ne4 {[%emt 0:02:20]} 65. Rxf3 {[%emt 0:00:30]} Nf6 {[%emt 0:00:28]} 66. g7 {[%emt 0:00:46] Weighted Error Value: White=0.15 (very precise) /Black=0.29 (precise)} 1-0